fUST/lending_fUST_20240312
["ID","MTS","AMOUNT","RATE_DAILY","PERIOD"]
[318331238,1710180649083,-500.0,0.00015495,2]
[318331240,1710180649092,-500.0,0.00015495,2]
[318331242,1710180649101,-500.0,0.00015495,2]
[318331244,1710180649110,-500.0,0.00015495,2]
[318331246,1710180649119,-500.0,0.00015495,2]
[318331248,1710180649128,-500.0,0.00015495,2]
[318331250,1710180649137,-500.0,0.00015495,2]
[318331252,1710180649146,-500.0,0.00015495,2]
[318331254,1710180649156,-500.0,0.00015495,2]
[318331256,1710180649168,-500.0,0.00015495,2]
[318331258,1710180649177,-500.0,0.00015495,2]
[318331260,1710180649186,-500.0,0.00015495,2]
[318331262,1710180649195,-500.0,0.00015495,2]
[318331264,1710180649205,-500.0,0.00015495,2]
[318331266,1710180649216,-500.0,0.00015495,2]
[318331268,1710180649225,-500.0,0.00015495,2]
[318331270,1710180649234,-500.0,0.00015495,2]
[318331272,1710180649245,-500.0,0.00015495,2]
[318331274,1710180649254,-500.0,0.00015495,2]
[318331276,1710180649263,-500.0,0.00015495,2]
[318331278,1710180649272,-194.15070962,0.00015495,2]
[318331280,1710180649281,-702.75,0.00015495,2]
[318331282,1710180649289,-702.75,0.00015495,2]
[318331284,1710180649299,-500.0,0.00015495,2]
[318331286,1710180649308,-500.0,0.00015495,2]
[318331288,1710180649318,-432.29229491,0.00015495,2]
[318331290,1710180649328,-749.27,0.00015495,2]
[318331292,1710180649337,-749.27,0.00015495,2]
[318331294,1710180649347,-500.0,0.00015495,2]
[318331296,1710180649356,-500.0,0.00015495,2]
[318331298,1710180649364,-500.0,0.00015495,2]
[318331300,1710180649373,-500.0,0.00015495,2]
[318331302,1710180649382,-500.0,0.00015495,2]
[318331304,1710180649391,-500.0,0.00015495,2]
[318331306,1710180649400,-500.0,0.00015495,2]
[318331308,1710180649409,-500.0,0.00015495,2]
[318331310,1710180649418,-500.0,0.00015495,2]
[318331312,1710180649428,-500.0,0.00015495,2]
[318331314,1710180649437,-500.0,0.00015495,2]
[318331315,1710180649446,-500.0,0.00015495,2]
[318331316,1710180649454,-500.0,0.00015495,2]
[318331317,1710180649465,-500.0,0.00015495,2]
[318331318,1710180649474,-500.0,0.00015495,2]
[318331319,1710180649483,-500.0,0.00015495,2]
[318331320,1710180649491,-500.0,0.00015495,2]
[318331321,1710180649500,-500.0,0.00015495,2]
[318331322,1710180649511,-171.83792415,0.00015495,2]
[318331323,1710180649525,-328.16207585,0.00015495,2]
[318331324,1710180649534,-438.27523325,0.00015495,2]
[318340832,1710180750732,158.05100197,0.00011621,2]
[318341019,1710180764735,155.13496742,0.00011621,2]
[318341020,1710180786754,155.12875687,0.00011621,2]
[318341045,1710180796405,13440.22299184,0.00011621,2]
[318341046,1710180796436,4812.03072515,0.00011621,2]
[318341047,1710180808742,155.13186208,8.716e-05,2]
[318341048,1710180812407,12168.16914466,0.00011621,2]
[318341049,1710180824828,254.61453374,8.716e-05,2]
[318341050,1710180834426,1610.05373437,8.716e-05,2]
[318341051,1710180834461,8530.08721951,8.716e-05,2]
[318341052,1710180854588,5283.01343697,8.716e-05,2]
[318341053,1710180872581,5186.89934352,8.716e-05,2]
[318341054,1710180872612,96.11409345,8.716e-05,2]
[318341055,1710180892416,5283.01343697,8.716e-05,2]
[318341056,1710180908432,5283.01343697,8.716e-05,2]
[318341057,1710180928431,5283.01343697,8.716e-05,2]
[318341058,1710180946429,3054.84559564,8.716e-05,2]
[318341059,1710180946464,2228.16784133,8.716e-05,2]
[318341060,1710180964435,5283.01343697,8.716e-05,2]
[318341061,1710180973940,-186.73102555,0.00014341,2]
[318341062,1710180973968,-558.48918801,0.00014342,2]
[318341063,1710180973994,-212.08309675,0.00014343,2]
[318341064,1710180974020,-404.59380981,0.00014343,2]
[318341065,1710180974046,-704.15336957,0.00014344,2]
[318341066,1710180974065,-186.73102555,0.00014345,2]
[318341067,1710180974076,-558.48918801,0.00014345,2]
[318341068,1710180974103,-212.08309675,0.00014345,2]
[318341069,1710180974115,-404.59380981,0.00014345,2]
[318341070,1710180974126,-704.15336957,0.00014345,2]
[318341071,1710180974138,-33667.89902062,0.00014345,2]
[318341072,1710180980432,5283.01343697,8.716e-05,2]
[318341073,1710181002602,5283.01343697,8.716e-05,2]
[318341074,1710181018430,922.79184776,8.716e-05,2]
[318341075,1710181018462,4360.22158921,8.716e-05,2]
[318341076,1710181034551,5283.01343697,8.716e-05,2]
[318341077,1710181054432,2727.69791662,8.716e-05,2]
[318341078,1710181134288,-308.670385,0.00014493,2]
[318341079,1710181155280,-704.15336957,0.00015487,2]
[318341080,1710181155305,-704.15336957,0.00015487,2]
[318341081,1710181155320,-33774.35249086,0.00015487,2]
[318341082,1710181240353,-704.15336957,0.00014874,2]
[318341083,1710181240381,-8000.0,0.00014875,2]
[318341084,1710181240407,-2000.0,0.00014876,2]
[318341085,1710181240436,-300.0,0.00015488,2]
[318341086,1710181240462,-1233.435475,0.00015491,2]
[318341087,1710181240488,-359.15669773,0.00015492,2]
[318341088,1710181240533,-500.0,0.00015492,2]
[318341089,1710181240559,-500.0,0.00015492,2]
[318341090,1710181240585,-500.0,0.00015492,2]
[318341091,1710181240610,-500.0,0.00015492,2]
[318341092,1710181240636,-500.0,0.00015492,2]
[318341093,1710181240662,-500.0,0.00015492,2]
[318341094,1710181240691,-765.5589154,0.00015492,2]
[318341095,1710181240703,-275.3910846,0.00015492,2]
[318341096,1710181240713,-428.76228497,0.00015492,2]
[318341097,1710181240724,-612.18771503,0.00015492,2]
[318341098,1710181240734,-500.0,0.00015492,2]
[318341099,1710181240743,-500.0,0.00015492,2]
[318341100,1710181240752,-500.0,0.00015492,2]
[318341101,1710181240762,-500.0,0.00015492,2]
[318341102,1710181240771,-773.61,0.00015492,2]
[318341103,1710181240781,-773.61,0.00015492,2]
[318341104,1710181240791,-1062.92,0.00015492,2]
[318341105,1710181240800,-1062.92,0.00015492,2]
[318341106,1710181240810,-500.0,0.00015492,2]
[318341107,1710181240819,-500.0,0.00015492,2]
[318341108,1710181240828,-714.75228497,0.00015492,2]
[318341109,1710181240840,-539.57771503,0.00015492,2]
[318341110,1710181240849,-1254.33,0.00015492,2]
[318341111,1710181240858,-206.09228497,0.00015492,2]
[318341112,1710181240870,-300.0,0.00015492,2]
[318341113,1710181240881,-748.23771503,0.00015492,2]
[318341114,1710181240890,-485.19775997,0.00015492,2]
[318341115,1710181240902,-359.15669773,0.00015492,2]
[318341116,1710181240913,-409.9755423,0.00015492,2]
[318341117,1710181240923,-90.0244577,0.00015492,2]
[318341118,1710181240935,-418.07004707,0.00015492,2]
[318341119,1710181240944,-81.92995293,0.00015492,2]
[318341120,1710181240956,-500.0,0.00015492,2]
[318341121,1710181240968,-500.0,0.00015492,2]
[318341122,1710181240980,-500.0,0.00015492,2]
[318341123,1710181240992,-500.0,0.00015492,2]
[318341124,1710181241004,-751.59004707,0.00015492,2]
[318341125,1710181241013,-289.35995293,0.00015492,2]
[318341126,1710181254832,-500.0,0.00015491,2]
[318341127,1710181254859,-500.0,0.00015491,2]
[318341128,1710181254886,-2544.16004707,0.00015492,2]
[318341129,1710181254914,-2833.52,0.00015492,2]
[318341130,1710181254942,-2833.52,0.00015492,2]
[318341131,1710181254968,-1060.68,0.00015492,2]
[318341132,1710181254995,-1060.68,0.00015492,2]
[318341133,1710181255022,-2029.57,0.00015492,2]
[318341134,1710181255048,-2029.57,0.00015492,2]
[318341135,1710181255074,-500.0,0.00015492,2]
[318341136,1710181255113,-500.0,0.00015492,2]
[318341137,1710181255135,-500.0,0.00015492,2]
[318341138,1710181255151,-500.0,0.00015492,2]
[318341139,1710181255163,-500.0,0.00015492,2]
[318341140,1710181255173,-500.0,0.00015492,2]
[318341141,1710181255184,-522.8693144,0.00015492,2]
[318341142,1710181255194,-1021.29073267,0.00015492,2]
[318341143,1710181255205,-2833.52,0.00015492,2]
[318341144,1710181255217,-2833.52,0.00015492,2]
[318341145,1710181255245,-1060.68,0.00015492,2]
[318341146,1710181255256,-1060.68,0.00015492,2]
[318341147,1710181255267,-2029.57,0.00015492,2]
[318341148,1710181255279,-1958.92926733,0.00015492,2]
[318341149,1710181255288,-70.64073267,0.00015492,2]
[318341150,1710181255299,-500.0,0.00015492,2]
[318341151,1710181255311,-500.0,0.00015492,2]
[318341152,1710181255322,-216.59990586,0.00015492,2]
[318341211,1710181832256,-155.13652014,0.00014974,2]
[318341213,1710181832266,-558.48918801,0.00014975,2]
[318341215,1710181832275,-429.31792098,0.00014976,2]
[318341217,1710181832284,-2000.0,0.00014977,2]
[318341219,1710181832293,-859.39159977,0.00015026,2]
[318341221,1710181832303,-500.0,0.00015068,2]
[318341223,1710181832313,-500.0,0.00015488,2]
[318341225,1710181832323,-300.0,0.00015489,2]
[318341227,1710181832332,-8471.28546801,0.0001549,2]
[318341229,1710181832343,-15284.846312,0.0001549,2]
[318341231,1710181832354,-6203.95385248,0.0001549,2]
[318341530,1710181839930,-429.31792098,0.00014973,2]
[318341532,1710181839943,-166.08495446,0.0001549,2]
[318341534,1710181839954,-1500.36449618,0.0001549,2]
[318341537,1710181839965,-4411.69385561,0.0001549,2]
[318341539,1710181839976,-11627.20122984,0.0001549,2]
[318341541,1710181839986,-500.0,0.0001549,2]
[318341543,1710181839995,-500.0,0.0001549,2]
[318341545,1710181840004,-268.30970909,0.0001549,2]
[318341547,1710181840013,-500.0,0.0001549,2]
[318341548,1710181840022,-500.0,0.0001549,2]
[318341550,1710181840031,-500.0,0.0001549,2]
[318341552,1710181840041,-2526.57,0.0001549,2]
[318341554,1710181840050,-2526.57,0.0001549,2]
[318341556,1710181840059,-2526.57,0.0001549,2]
[318341558,1710181840068,-500.0,0.0001549,2]
[318341560,1710181840077,-500.0,0.0001549,2]
[318341562,1710181840086,-500.0,0.0001549,2]
[318341564,1710181840096,-1009.06,0.0001549,2]
[318341566,1710181840105,-1009.06,0.0001549,2]
[318341568,1710181840114,-715.54018513,0.0001549,2]
[318341570,1710181840126,-293.51981487,0.0001549,2]
[318341572,1710181840135,-1237.2,0.0001549,2]
[318341574,1710181840144,-1237.2,0.0001549,2]
[318341576,1710181840153,-1237.2,0.0001549,2]
[318341578,1710181840163,-773.61,0.0001549,2]
[318341580,1710181840172,-773.61,0.0001549,2]
[318341582,1710181840184,-773.61,0.0001549,2]
[318341584,1710181840194,-254.9147828,0.00015491,2]
[318341586,1710181840203,-1062.92,0.00015491,2]
[318341588,1710181840212,-1062.92,0.00015491,2]
[318341590,1710181840222,-1062.92,0.00015491,2]
[318341592,1710181840231,-1045.28,0.00015491,2]
[318341595,1710181840241,-1045.28,0.00015491,2]
[318341596,1710181840251,-1045.28,0.00015491,2]
[318341598,1710181840261,-1045.28,0.00015491,2]
[318341600,1710181840270,-1045.28,0.00015491,2]
[318341603,1710181840280,-1045.28,0.00015491,2]
[318341604,1710181840289,-688.05,0.00015491,2]
[318341606,1710181840299,-1045.28,0.00015491,2]
[318341608,1710181840309,-688.05,0.00015491,2]
[318341610,1710181840319,-500.0,0.00015491,2]
[318341612,1710181840329,-500.0,0.00015491,2]
[318341614,1710181840338,-500.0,0.00015491,2]
[318341616,1710181840347,-2361.27,0.00015491,2]
[318341618,1710181840357,-2361.27,0.00015491,2]
[318341620,1710181840366,-2361.27,0.00015491,2]
[318341622,1710181840375,-2361.27,0.00015491,2]
[318341624,1710181840386,-2361.27,0.00015491,2]
[318341626,1710181840395,-2361.27,0.00015491,2]
[318341628,1710181840404,-2361.27,0.00015491,2]
[318341630,1710181840414,-3069.49,0.00015491,2]
[318341632,1710181840423,-3069.49,0.00015491,2]
[318341634,1710181840435,-972.29,0.00015491,2]
[318341636,1710181840444,-972.29,0.00015491,2]
[318341638,1710181840454,-972.29,0.00015491,2]
[318341640,1710181840463,-1860.44,0.00015491,2]
[318341642,1710181840472,-1860.44,0.00015491,2]
[318341644,1710181840482,-1860.44,0.00015491,2]
[318341646,1710181840491,-550.77566838,0.00015491,2]
[318341648,1710181840500,-500.0,0.00015491,2]
[318341650,1710181840510,-500.0,0.00015491,2]
[318341652,1710181840520,-12264.93,0.00015491,2]
[318341654,1710181840529,-500.0,0.00015491,2]
[318341656,1710181840538,-12264.93,0.00015491,2]
[318341658,1710181840550,-506.82342126,0.00015491,2]
[318341660,1710181840558,-12264.93,0.00015491,2]
[318341661,1710181840569,-500.0,0.00015491,2]
[318341663,1710181840578,-500.0,0.00015491,2]
[318341666,1710181840588,-500.0,0.00015491,2]
[318341668,1710181840597,-500.0,0.00015491,2]
[318341669,1710181840607,-280.39465805,0.00015491,2]
[318341671,1710181840616,-500.0,0.00015491,2]
[318341673,1710181840629,-500.0,0.00015491,2]
[318341675,1710181840638,-500.0,0.00015491,2]
[318341677,1710181840647,-501.43373043,0.00015491,2]
[318341679,1710181840656,-443.49803033,0.00015491,2]
[318341681,1710181840665,-500.0,0.00015491,2]
[318341683,1710181840674,-500.0,0.00015491,2]
[318341685,1710181840685,-500.0,0.00015491,2]
[318341687,1710181840694,-500.0,0.00015491,2]
[318341689,1710181840704,-500.0,0.00015491,2]
[318341691,1710181840713,-500.0,0.00015491,2]
[318341693,1710181840723,-500.0,0.00015491,2]
[318341695,1710181840732,-500.49421029,0.00015491,2]
[318341697,1710181840742,-507.37542494,0.00015491,2]
[318341699,1710181840751,-2853.9,0.00015491,2]
[318341701,1710181840760,-2853.9,0.00015491,2]
[318341703,1710181840769,-2853.9,0.00015491,2]
[318341705,1710181840778,-2526.57,0.00015491,2]
[318341707,1710181840788,-2526.57,0.00015491,2]
[318341709,1710181840797,-2526.57,0.00015491,2]
[318341711,1710181840806,-2526.57,0.00015491,2]
[318341713,1710181840815,-2526.57,0.00015491,2]
[318341715,1710181840824,-2526.57,0.00015491,2]
[318341717,1710181840834,-2526.57,0.00015491,2]
[318341719,1710181840844,-2526.57,0.00015491,2]
[318341721,1710181840853,-32813.53,0.00015491,2]
[318341723,1710181840862,-2526.57,0.00015491,2]
[318341724,1710181840871,-32813.53,0.00015491,2]
[318341726,1710181840881,-2526.57,0.00015491,2]
[318341728,1710181840890,-2526.57,0.00015491,2]
[318341730,1710181840899,-2526.57,0.00015491,2]
[318341732,1710181840909,-2526.57,0.00015491,2]
[318341734,1710181840918,-2526.57,0.00015491,2]
[318341736,1710181840927,-2526.57,0.00015491,2]
[318341738,1710181840939,-2526.57,0.00015491,2]
[318341740,1710181840949,-2526.57,0.00015491,2]
[318341742,1710181840958,-500.0,0.00015491,2]
[318341744,1710181840968,-2526.57,0.00015491,2]
[318341747,1710181840978,-2526.57,0.00015491,2]
[318341749,1710181840988,-500.0,0.00015491,2]
[318341751,1710181841001,-500.0,0.00015491,2]
[318341761,1710181841091,-2526.57,0.00015491,2]
[318341763,1710181841102,-2526.68290746,0.00015491,2]
[318341765,1710181841111,-550.67,0.00015491,2]
[318341767,1710181841121,-550.67,0.00015491,2]
[318341769,1710181841131,-550.67,0.00015491,2]
[318341771,1710181841140,-550.67,0.00015491,2]
[318341773,1710181841149,-550.67,0.00015491,2]
[318341774,1710181841158,-550.67,0.00015491,2]
[318341776,1710181841168,-550.67,0.00015491,2]
[318341778,1710181841178,-500.0,0.00015491,2]
[318341780,1710181841189,-500.0,0.00015491,2]
[318341782,1710181841199,-500.0,0.00015491,2]
[318341784,1710181841209,-500.0,0.00015491,2]
[318341786,1710181841219,-500.0,0.00015491,2]
[318341788,1710181841228,-500.0,0.00015491,2]
[318341790,1710181841238,-500.0,0.00015491,2]
[318341792,1710181841247,-351.97585446,0.00015491,2]
[318341794,1710181841256,-500.0,0.00015491,2]
[318341796,1710181841266,-500.0,0.00015491,2]
[318341798,1710181841276,-500.0,0.00015491,2]
[318341800,1710181841286,-163.5293896,0.00015491,2]
[318341802,1710181841295,-500.0,0.00015491,2]
[318341804,1710181841305,-500.0,0.00015491,2]
[318341806,1710181841314,-500.0,0.00015491,2]
[318341808,1710181841325,-500.0,0.00015491,2]
[318341810,1710181841334,-500.0,0.00015491,2]
[318341812,1710181841343,-500.0,0.00015491,2]
[318341814,1710181841353,-500.0,0.00015491,2]
[318341816,1710181841362,-500.0,0.00015491,2]
[318341818,1710181841371,-500.0,0.00015491,2]
[318341820,1710181841381,-500.0,0.00015491,2]
[318341822,1710181841390,-500.0,0.00015491,2]
[318341823,1710181841399,-500.0,0.00015491,2]
[318341826,1710181841410,-500.0,0.00015491,2]
[318341827,1710181841418,-252.27428166,0.00015491,2]
[318341829,1710181841427,-8308.31,0.00015491,2]
[318341831,1710181841440,-1009.06,0.00015491,2]
[318341833,1710181841449,-8308.31,0.00015491,2]
[318341835,1710181841458,-8308.31,0.00015491,2]
[318341837,1710181841468,-1009.06,0.00015491,2]
[318341839,1710181841478,-1009.06,0.00015491,2]
[318341841,1710181841488,-1009.06,0.00015491,2]
[318341843,1710181841497,-1009.06,0.00015491,2]
[318341845,1710181841507,-1009.06,0.00015491,2]
[318341847,1710181841516,-1009.06,0.00015491,2]
[318341849,1710181841527,-1009.06,0.00015491,2]
[318341851,1710181841536,-1009.06,0.00015491,2]
[318341853,1710181841550,-1009.06,0.00015491,2]
[318341855,1710181841559,-1237.2,0.00015491,2]
[318341857,1710181841569,-1009.06,0.00015491,2]
[318341858,1710181841578,-1237.2,0.00015491,2]
[318341860,1710181841590,-1009.06,0.00015491,2]
[318341863,1710181841601,-1237.2,0.00015491,2]
[318341864,1710181841611,-1009.06,0.00015491,2]
[318341866,1710181841620,-1237.2,0.00015491,2]
[318341868,1710181841633,-1009.06,0.00015491,2]
[318341870,1710181841644,-1237.2,0.00015491,2]
[318341872,1710181841655,-1009.06,0.00015491,2]
[318341875,1710181841666,-1237.2,0.00015491,2]
[318341876,1710181841676,-1009.06,0.00015491,2]
[318341878,1710181841688,-1237.2,0.00015491,2]
[318341880,1710181841699,-1009.06,0.00015491,2]
[318341882,1710181841708,-1237.2,0.00015491,2]
[318341884,1710181841719,-1009.06,0.00015491,2]
[318341886,1710181841729,-1237.2,0.00015491,2]
[318341888,1710181841739,-1009.06,0.00015491,2]
[318341890,1710181841749,-1237.2,0.00015491,2]
[318341892,1710181841758,-1009.06,0.00015491,2]
[318341894,1710181841768,-1237.2,0.00015491,2]
[318341896,1710181841778,-1237.2,0.00015491,2]
[318341898,1710181841787,-1009.0854989,0.00015491,2]
[318341900,1710181841796,-1237.2,0.00015491,2]
[318341902,1710181841806,-1237.2,0.00015491,2]
[318341904,1710181841815,-1237.2,0.00015491,2]
[318341906,1710181841824,-1237.2,0.00015491,2]
[318341908,1710181841833,-1237.2,0.00015491,2]
[318341910,1710181841842,-1237.2,0.00015491,2]
[318341912,1710181841851,-1237.2,0.00015491,2]
[318341914,1710181841860,-1237.2,0.00015491,2]
[318341915,1710181841869,-1237.41329671,0.00015491,2]
[318341917,1710181841878,-500.0,0.00015491,2]
[318341919,1710181841887,-500.0,0.00015491,2]
[318341921,1710181841896,-363.3451778,0.00015491,2]
[318341923,1710181841906,-773.61,0.00015491,2]
[318341925,1710181841916,-773.61,0.00015491,2]
[318341927,1710181841926,-773.61,0.00015491,2]
[318341929,1710181841938,-773.61,0.00015491,2]
[318341931,1710181841947,-773.61,0.00015491,2]
[318341933,1710181841957,-773.61,0.00015491,2]
[318341935,1710181841967,-10040.52309843,0.00015492,2]
[318341937,1710181841977,-151.0,0.00015492,2]
[318341939,1710181841987,-151.0,0.00015492,2]
[318341941,1710181841998,-500.0,0.00015492,2]
[318341944,1710181842015,-544.26842603,0.00015492,2]
[318341946,1710181842030,-2938.64324137,0.00015492,2]
[318341948,1710181842043,-500.0,0.00015492,2]
[318341951,1710181842057,-500.0,0.00015492,2]
[318341953,1710181842069,-1597.92,0.00015492,2]
[318341955,1710181842079,-1597.92,0.00015492,2]
[318341957,1710181842091,-332.00290826,0.00015492,2]
[318341959,1710181842102,-500.0,0.00015492,2]
[318341962,1710181842113,-500.0,0.00015492,2]
[318341964,1710181842126,-500.0,0.00015492,2]
[318341966,1710181842138,-279.49546637,0.00015492,2]
[318341968,1710181842150,-400.00589841,0.00015492,2]
[318341971,1710181842162,-569.17,0.00015492,2]
[318341973,1710181842174,-569.17,0.00015492,2]
[318341975,1710181842188,-500.0,0.00015492,2]
[318341977,1710181842198,-500.0,0.00015492,2]
[318341979,1710181842209,-395.15078753,0.00015492,2]
[318341981,1710181842220,-170.42110272,0.00015492,2]
[318341982,1710181842231,-500.0,0.00015492,2]
[318341983,1710181842242,-500.0,0.00015492,2]
[318341984,1710181842254,-500.0,0.00015492,2]
[318341985,1710181842264,-500.0,0.00015492,2]
[318341987,1710181842275,-500.0,0.00015492,2]
[318341989,1710181842288,-500.0,0.00015492,2]
[318341990,1710181842299,-500.0,0.00015492,2]
[318341991,1710181842310,-500.0,0.00015492,2]
[318341992,1710181842320,-500.0,0.00015492,2]
[318341993,1710181842330,-500.0,0.00015492,2]
[318341995,1710181842344,-500.0,0.00015492,2]
[318341996,1710181842355,-500.0,0.00015492,2]
[318341997,1710181842365,-500.0,0.00015492,2]
[318341999,1710181842378,-236.18549518,0.00015492,2]
[318342000,1710181842388,-500.0,0.00015492,2]
[318342003,1710181842399,-500.0,0.00015492,2]
[318342006,1710181842409,-500.0,0.00015492,2]
[318342010,1710181842421,-500.0,0.00015492,2]
[318342013,1710181842432,-209.05621972,0.00015492,2]
[318342015,1710181842446,-500.0,0.00015492,2]
[318342020,1710181842457,-500.0,0.00015492,2]
[318342026,1710181842468,-501.53376125,0.00015492,2]
[318342031,1710181842481,-500.0,0.00015492,2]
[318342035,1710181842493,-500.0,0.00015492,2]
[318342039,1710181842506,-519.57472686,0.00015492,2]
[318342044,1710181842520,-500.0,0.00015492,2]
[318342048,1710181842536,-500.0,0.00015492,2]
[318342051,1710181842547,-500.0,0.00015492,2]
[318342054,1710181842557,-500.0,0.00015492,2]
[318342056,1710181842569,-500.0,0.00015492,2]
[318342058,1710181842581,-500.0,0.00015492,2]
[318342060,1710181842594,-552.624168,0.00015492,2]
[318342062,1710181842606,-500.0,0.00015492,2]
[318342065,1710181842622,-500.0,0.00015492,2]
[318342067,1710181842634,-278.18172989,0.00015492,2]
[318342069,1710181842647,-502.31478218,0.00015492,2]
[318342070,1710181842658,-1140.7,0.00015492,2]
[318342072,1710181842670,-1140.7,0.00015492,2]
[318342074,1710181842680,-1140.7,0.00015492,2]
[318342076,1710181842694,-1140.7,0.00015492,2]
[318342078,1710181842704,-1140.7,0.00015492,2]
[318342080,1710181842716,-1140.7,0.00015492,2]
[318342082,1710181842727,-1140.7,0.00015492,2]
[318342084,1710181842737,-1140.7,0.00015492,2]
[318342086,1710181842748,-1140.7,0.00015492,2]
[318342088,1710181842759,-500.0,0.00015492,2]
[318342090,1710181842769,-500.0,0.00015492,2]
[318342092,1710181842780,-500.0,0.00015492,2]
[318342095,1710181842791,-500.0,0.00015492,2]
[318342097,1710181842802,-500.0,0.00015492,2]
[318342099,1710181842812,-500.0,0.00015492,2]
[318342101,1710181842824,-500.0,0.00015492,2]
[318342103,1710181842835,-500.0,0.00015492,2]
[318342105,1710181842846,-500.0,0.00015492,2]
[318342108,1710181842857,-500.0,0.00015492,2]
[318342110,1710181842868,-500.0,0.00015492,2]
[318342112,1710181842879,-500.0,0.00015492,2]
[318342114,1710181842890,-500.0,0.00015492,2]
[318342116,1710181842900,-500.0,0.00015492,2]
[318342118,1710181842911,-500.0,0.00015492,2]
[318342120,1710181842922,-500.0,0.00015492,2]
[318342122,1710181842933,-500.0,0.00015492,2]
[318342124,1710181842946,-500.0,0.00015492,2]
[318342126,1710181842957,-500.0,0.00015492,2]
[318342128,1710181842968,-586.40341612,0.00015492,2]
[318342130,1710181842979,-500.0,0.00015492,2]
[318342132,1710181842990,-500.0,0.00015492,2]
[318342134,1710181843001,-500.0,0.00015492,2]
[318342136,1710181843015,-500.0,0.00015492,2]
[318342139,1710181843026,-500.0,0.00015492,2]
[318342141,1710181843037,-589.0061967,0.00015492,2]
[318342165,1710181843047,-500.0,0.00015492,2]
[318342170,1710181843167,-500.0,0.00015492,2]
[318342173,1710181843176,-370.91894643,0.00015492,2]
[318342175,1710181843186,-500.0,0.00015492,2]
[318342178,1710181843196,-500.0,0.00015492,2]
[318342181,1710181843205,-500.0,0.00015492,2]
[318342185,1710181843215,-500.0,0.00015492,2]
[318342187,1710181843227,-500.0,0.00015492,2]
[318342189,1710181843236,-500.0,0.00015492,2]
[318342191,1710181843245,-500.0,0.00015492,2]
[318342193,1710181843254,-541.46,0.00015492,2]
[318342195,1710181843265,-541.46,0.00015492,2]
[318342197,1710181843275,-500.0,0.00015492,2]
[318342199,1710181843285,-541.46,0.00015492,2]
[318342201,1710181843293,-500.0,0.00015492,2]
[318342203,1710181843302,-541.46,0.00015492,2]
[318342205,1710181843311,-541.46,0.00015492,2]
[318342207,1710181843320,-500.0,0.00015492,2]
[318342209,1710181843330,-541.46,0.00015492,2]
[318342211,1710181843338,-541.46,0.00015492,2]
[318342213,1710181843348,-466.54378351,0.00015492,2]
[318342215,1710181843357,-541.46,0.00015492,2]
[318342217,1710181843366,-541.46,0.00015492,2]
[318342219,1710181843375,-500.0,0.00015492,2]
[318342221,1710181843383,-500.0,0.00015492,2]
[318342223,1710181843393,-500.0,0.00015492,2]
[318342225,1710181843402,-500.0,0.00015492,2]
[318342227,1710181843411,-500.0,0.00015492,2]
[318342229,1710181843420,-500.0,0.00015492,2]
[318342231,1710181843431,-500.0,0.00015492,2]
[318342233,1710181843442,-500.0,0.00015492,2]
[318342235,1710181843452,-500.0,0.00015492,2]
[318342237,1710181843462,-304.04179918,0.00015492,2]
[318342239,1710181843471,-500.0,0.00015492,2]
[318342241,1710181843480,-500.0,0.00015492,2]